Cogmind - Beta 11.1 @@@ ROGUE MODE // 2022.05.15 @ 14:41:10 Player: Sir Vaelion Result: Destroyed by G-47 Trooper with Particle Gun Performance ------------- Evolutions (3) 1500 Regions Visited (6) 1200 Robots Destroyed (40) 200 Value Destroyed (1442) 1442 Prototype IDs (1) 20 Alien Tech Used (0) 0 Bonus (533) 533 TOTAL SCORE: 4895 Bonus ------- High Alert Combat Kills 33 Entered DSFs 500 Cogmind --------- Core Integrity 0/700 Matter 23/500 Energy 100/100 System Corruption 0% Temperature Cool (18) Movement Core (400) Ox7 Location -7/DSF Parts ------- > --- POWER (2) -------- (None) > --- PROPULSION (3) --- (None) > --- UTILITY (5) ------ Large Storage Unit High-capacity Matter Pod > --- WEAPON (3) ------- (None) > --- INVENTORY (15) --- Advanced Heat Sink Arc Projector Precision Assault Rifle Assault Cannon Missile Launcher Peak State ------------ > --- POWER ------------ Nuclear Core Light Nuclear Core > --- PROPULSION ------- Light Treads Advanced Treads > --- UTILITY ---------- Large Storage Unit High-capacity Matter Pod Core Shielding Heavy Armor Plating > --- WEAPON ----------- Precision Assault Rifle Precision Assault Rifle Assault Cannon > --- INVENTORY -------- Light Deuterium Engine Light Deuterium Engine Advanced Heat Sink Arc Projector Arc Projector Arc Projector Heavy Laser Plasma Cannon Gauss Rifle Precision Assault Rifle Missile Launcher [Rating: 36] Favorites ----------- Power Ion Engine Engine Ion Engine Power Core Light Nuclear Core Propulsion Aluminum Leg Treads Light Treads Leg Aluminum Leg Utility Large Storage Unit Device Heat Sink Storage Large Storage Unit Processor Advanced Visual Processing Unit Protection Core Shielding Weapon Precision Assault Rifle Energy Gun Small Laser Energy Cannon Plasma Cannon Ballistic Gun Precision Assault Rifle Ballistic Cannon Assault Cannon Launcher Rocket Launcher Build | -11 -10 -10 -9 -8 -7 -7 ------- Run | Scr Mat Min Mat Mat Fac DSF Slots Evolved 6 | . . . 2 2 2 . Power 1 | . . . . 1 . . Propulsion 1 | . . . 1 . . . Utility 3 | . . . 1 1 1 . Weapon 1 | . . . . . 1 . Parts Attached 68 | 6 1 7 9 32 3 10 Power 12 | 1 . 1 2 6 . 2 Engine 8 | 1 . 1 2 2 . 2 Core 4 | . . . . 4 . . Reactor . | . . . . . . . Propulsion 15 | 2 . 3 4 6 . . Treads 5 | . . 2 1 2 . . Leg 10 | 2 . 1 3 4 . . Wheel . | . . . . . . . Hover . | . . . . . . . Flight . | . . . . . . . Utility 15 | 1 1 1 1 10 1 . Device 2 | . . . 1 1 . . Storage 4 | 1 . 1 . 2 . . Processor 5 | . . . . 5 . . Hackware . | . . . . . . . Protection 4 | . 1 . . 2 1 . Artifact . | . . . . . . . Weapon 26 | 2 . 2 2 10 2 8 Energy Gun 7 | 1 . . . 3 . 3 Energy Cannon 3 | . . . . 2 . 1 Ballistic Gun 8 | 1 . 1 1 2 1 2 Ballistic Cannon 3 | . . . 1 1 1 . Launcher 5 | . . 1 . 2 . 2 Special Weapon . | . . . . . . . Impact Weapon . | . . . . . . . Slashing Weapon . | . . . . . . . Piercing Weapon . | . . . . . . . Special Melee Weapon . | . . . . . . . Unidentified Prototypes 1 | . . . . 1 . . Parts Lost 29 | . . 2 6 6 . 15 Power 7 | . . 1 1 1 . 4 Propulsion 8 | . . 1 1 4 . 2 Utility 4 | . . . 2 . . 2 Weapon 10 | . . . 2 1 . 7 Highest Loss Streak 15 | . . 1 5 5 . 15 To Critical Strikes 1 | . . . 1 . . . Average Slot Usage (%) 88 | . 98 92 75 94 84 66 Engine 9 | . 14 7 2 13 . . Core 3 | . . . . 3 15 10 Treads 7 | . . 11 25 1 15 10 Leg 16 | . 28 15 . 23 . . Device 1 | . . . 5 1 . . Storage 11 | . 14 14 11 10 15 15 Processor 7 | . . . . 14 . . Protection 9 | . 12 14 8 8 15 9 Energy Gun 2 | . 14 8 . 1 . 1 Energy Cannon 3 | . . . . 7 . . Ballistic Gun 12 | . 14 18 19 7 15 12 Ballistic Cannon 1 | . . . 2 1 7 3 Naked Turns . | . . . . . . . Heaviest Build 65 | 10 11 26 30 48 65 65 Greatest Support 63 | 20 20 40 63 42 42 42 Greatest Overweight (x) 14 | 1 . 1 . 14 1 14 Average Overweight (x) . | . . . . . 1 2 Largest Inventory Capacity 15 | 8 8 15 15 15 15 15 Average Capacity 13 | 7 8 11 15 14 15 15 Most Carried 15 | 7 6 8 15 15 11 12 Average Carried 10 | 4 4 6 10 12 6 9 Final Capacity 15 | 8 8 15 15 15 15 15 Final Carried 11 | 4 6 7 11 11 7 5 Class Distribution -------------------- 47% | Mutant 42% | Scavenger-Mutant 7% | Tank Dominant Class ---------------- Mutant | -10/Materials Mutant | -10/Mines Mutant | -9/Materials Scavenger-Mutant | -8/Materials Tank | -7/Factory Tank | -7/DSF Resources | -11 -10 -10 -9 -8 -7 -7 ----------- Run | Scr Mat Min Mat Mat Fac DSF Matter Collected 1074 | 194 . 215 93 504 . 68 Remotely . | . . . . . . . Salvage Created 1320 | . . 184 154 802 . 180 Parts 90 | . . 9 23 51 . 7 Haulers Intercepted . | . . . . . . . Recyclers Shooed 1 | . . . 1 . . . Parts Field Recycled . | . . . . . . . Retrieved Matter . | . . . . . . . Parts Self-Destructed . | . . . . . . . Prevented . | . . . . . . . Kills | -11 -10 -10 -9 -8 -7 -7 ------- Run | Scr Mat Min Mat Mat Fac DSF Combat Hostiles Destroyed 33 | . . 7 5 18 . 3 Guns 10 | . . 5 . 5 . . Cannons 14 | . . . 3 9 . 2 AOE 8 | . . 2 2 3 . 1 Classes Destroyed 12 | . . 2 3 6 . 1 Worker 1 | . . . 1 . . . Builder 2 | . . . . 2 . . Tunneler 1 | . . . . 1 . . Watcher 6 | . . . 2 4 . . Swarmer 3 | . . . . 3 . . Grunt 13 | . . 4 4 5 . . Brawler 1 | . . . 1 . . . Duelist 1 | . . . . 1 . . Sentry 8 | . . . . 8 . . Specialist 3 | . . . . . . 3 Hunter 1 | . . . . 1 . . Assembled 3 | . . 3 . . . . Best Kill Streak 6 | . . 3 5 6 . 2 Combat Bots Only 5 | . . 3 3 5 . 2 Max Kills in Single Turn 5 | . . 2 5 2 . 1 Gunslinging . | . . . . . . . Exploded 2 | . . 2 2 1 . 1 Melee . | . . . . . . . Uniques/NPCs Destroyed . | . . . . . . . Combat | -11 -10 -10 -9 -8 -7 -7 -------- Run | Scr Mat Min Mat Mat Fac DSF Damage Taken 5018 | . 6 903 429 1318 . 2362 Core 1126 | . . 151 71 197 . 707 Absorbed by Shields . | . . . . . . . Redirected to Shielding 91 | . . 32 9 26 . 24 Regen/Repaired (Parts) 379 | . . . . 379 . . Core Remaining (%) 71 | 100 . 39 82 64 . . Volleys Fired 124 | . . 28 18 64 . 14 Largest 3 | . . 2 2 2 . 3 Hottest 133 | . . 60 59 124 . 133 Shots Fired 247 | . . 56 34 124 . 33 Gun 170 | . . 55 27 63 . 25 Cannon 61 | . . . 7 49 . 5 Launcher 16 | . . 1 . 12 . 3 Special . | . . . . . . . Kinetic 127 | . . 31 34 42 . 20 Thermal 101 | . . 24 . 70 . 7 Explosive 16 | . . 1 . 12 . 3 Electromagnetic 3 | . . . . . . 3 Robot Hit Streak 20 | . . 9 13 20 . 17 Robot Miss Streak 10 | . . 2 6 10 . 2 Penetration Max . | . . . . . . . Secondary Targets . | . . . . . . . Shots Hit Robots 166 | . . 46 18 77 . 25 Core Hits 75 | . . 19 9 37 . 10 Critical Kills 1 | . . . . 1 . . Critical Parts Destroyed 1 | . . 1 . . . . Critical Strikes 5 | . . 1 . 4 . . Burn 3 | . . . . 3 . . Meltdown 1 | . . . . 1 . . Destroy 1 | . . 1 . . . . Melee Attacks . | . . . . . . . Impact . | . . . . . . . Slashing . | . . . . . . . Piercing . | . . . . . . . Sneak Attacks . | . . . . . . . Combat Hostiles . | . . . . . . . Follow-up Attacks . | . . . . . . . Damage Inflicted 3904 | . . 577 592 1955 . 780 Guns 1516 | . . 436 117 625 . 338 Cannons 1053 | . . . 106 822 . 125 Explosions 1326 | . . 132 369 508 . 317 Melee . | . . . . . . . Ramming 9 | . . 9 . . . . Kinetic 1299 | . . 220 223 509 . 347 Thermal 1296 | . . 276 . 938 . 82 Explosive 1266 | . . 72 369 508 . 317 Electromagnetic 34 | . . . . . . 34 Impact . | . . . . . . . Slashing . | . . . . . . . Piercing . | . . . . . . . Highest Corruption 11 | . 2 2 11 . . . Average Corruption 3 | . 2 2 10 . . . Corruption Purged . | . . . . . . . Corruption Blocked . | . . . . . . . Effects 5 | . . 3 2 . . . Message Errors 1 | . . 1 . . . . Matter Fused 3 | . . 2 1 . . . Energy Discharges 1 | . . . 1 . . . Overload Shots . | . . . . . . . Overflow Damage 188 | . . 24 114 50 . . Projectiles 30 | . . . . 30 . . Explosions 158 | . . 24 114 20 . . Melee . | . . . . . . . Knockbacks 3 | . . . 1 1 . 1 Impact . | . . . . . . . Kinetic 3 | . . . 1 1 . 1 Secondary . | . . . . . . . Self-Inflicted Damage 305 | . . 82 75 148 . . Shots 7 | . . 2 1 4 . . Rammed 5 | . . 5 . . . . Targets Rammed 5 | . . 5 . . . . Kicked . | . . . . . . . Crushed . | . . . . . . . Highest Temperature 390 | . . 142 25 390 . 18 Average Temperature 118 | . . 59 5 145 . 10 Received Heat Transfer 1314 | . . 318 114 414 . 468 Effects 3 | . . . . 3 . . Shutdowns 1 | . . . . 1 . . Interference 2 | . . . . 2 . . Siege Activations . | . . . . . . . Robots Corrupted . | . . . . . . . Combat Hostiles . | . . . . . . . Parts Fried . | . . . . . . . Impact Corruptions . | . . . . . . . Robots Melted 1 | . . . . 1 . . Combat Hostiles 1 | . . . . 1 . . Parts Melted 3 | . . . . 3 . . Heat Transferred 2856 | . . 600 . 2095 . 161 Parts Sabotaged . | . . . . . . . Parts Stolen . | . . . . . . . Parts Stripped . | . . . . . . . Power Chain Reactions . | . . . . . . . Missiles Intercepted . | . . . . . . . Alert | -11 -10 -10 -9 -8 -7 -7 ------- Run | Scr Mat Min Mat Mat Fac DSF Peak Influence 443 | . . 137 216 443 150 198 Initial 150 | . . . . 91 150 105 Average 144 | . . 81 73 204 150 123 Maximum Alert Level 2 | . . . 1 2 . . Low Security (%) 77 | 100 100 100 83 61 100 100 Level 1 21 | . . . 16 37 . . Level 2 . | . . . . 1 . . Level 3 . | . . . . . . . Level 4 . | . . . . . . . Level 5 . | . . . . . . . High Security . | . . . . . . . Max Security . | . . . . . . . Squads Dispatched 6 | . . . 2 2 . 2 Investigation . | . . . . . . . Extermination . | . . . . . . . Reinforcement 6 | . . . 2 2 . 2 Assault . | . . . . . . . Garrison . | . . . . . . . Intercept . | . . . . . . . Searches Triggered . | . . . . . . . Construction Impeded 1 | . . . . 1 . . Haulers Reinforced . | . . . . . . . Active Scanning Responses . | . . . . . . . Cargo Convoy Interrupts . | . . . . . . . Stealth | -11 -10 -10 -9 -8 -7 -7 --------- Run | Scr Mat Min Mat Mat Fac DSF Distress Signals 4 | . . . 2 2 . . Communications Jammed . | . . . . . . . Distress Signals . | . . . . . . . Times Spotted 71 | . 2 16 11 29 . 13 Peak Tracking Total 15 | . 3 15 4 5 . 7 Tactical Retreats 3 | . . . . 1 . 2 Traps | -11 -10 -10 -9 -8 -7 -7 ------- Run | Scr Mat Min Mat Mat Fac DSF Traps Triggered 2 | . 1 . . 1 . . Indirectly . | . . . . . . . Trap Hack Attempts . | . . . . . . . Triggered . | . . . . . . . Disarmed 1 | . . . . 1 . . Reprogrammed . | . . . . . . . Reused . | . . . . . . . Traps Extracted . | . . . . . . . Installed . | . . . . . . . Triggered . | . . . . . . . Machines | -11 -10 -10 -9 -8 -7 -7 ---------- Run | Scr Mat Min Mat Mat Fac DSF Machines Disabled 5 | . . 1 2 2 . . Max in Single Turn 2 | . . 1 2 1 . . Machines Sabotaged . | . . . . . . . Garrisons Compromised . | . . . . . . . Overloaded Fab Kills . | . . . . . . . Hacking | -11 -10 -10 -9 -8 -7 -7 --------- Run | Scr Mat Min Mat Mat Fac DSF Machines Accessed 9 | . . 1 2 5 1 . Terminals 8 | . . 1 2 4 1 . Fabricators . | . . . . . . . Repair Stations 1 | . . . . 1 . . Recycling Units . | . . . . . . . Scanalyzers . | . . . . . . . Garrison Access . | . . . . . . . Total Hacks 23 | . . 4 4 14 1 . Successful 15 | . . . 3 11 1 . Failed 8 | . . 4 1 3 . . Catastrophic 1 | . . 1 . . . . Database Lockouts . | . . . . . . . Manual . | . . . . . . . Terminals 17 | . . 4 4 8 1 . Fabricators . | . . . . . . . Repair Stations 6 | . . . . 6 . . Recycling Units . | . . . . . . . Scanalyzers . | . . . . . . . Garrison Access . | . . . . . . . Terminal Hacks 9 | . . . 3 5 1 . Open DSF 1 | . . . . . 1 . Emergency Access Points 1 | . . . 1 . . . Alert Level 3 | . . . 1 2 . . Locate Traps 1 | . . . . 1 . . Disarm Traps 1 | . . . . 1 . . Zone Layout 2 | . . . 1 1 . . Fabricator Hacks . | . . . . . . . Repair Station Hacks 6 | . . . . 6 . . Scan Component 3 | . . . . 3 . . Repair 3 | . . . . 3 . . Recycling Unit Hacks . | . . . . . . . Scanalyzer . | . . . . . . . Garrison Access Hacks . | . . . . . . . Unauthorized Hacks . | . . . . . . . Terminals . | . . . . . . . Fabricators . | . . . . . . . Repair Stations . | . . . . . . . Recycling Units . | . . . . . . . Scanalyzers . | . . . . . . . Garrison Access . | . . . . . . . Data Cores Recovered . | . . . . . . . Used . | . . . . . . . Hacking Detections 6 | . . 1 2 3 . . Full Trace Events 1 | . . . . 1 . . Feedback Events . | . . . . . . . Feedback Blocked . | . . . . . . . Robot Schematics Acquired . | . . . . . . . Robots Built . | . . . . . . . Authchips . | . . . . . . . Time . | . . . . . . . Total Robot Build Rating . | . . . . . . . Part Schematics Acquired . | . . . . . . . Parts Built . | . . . . . . . Authchips . | . . . . . . . Time . | . . . . . . . Total Part Build Rating . | . . . . . . . Parts Repaired 3 | . . . . 3 . . Time 78 | . . . . 78 . . Parts Recycled . | . . . . . . . Recycled Matter . | . . . . . . . Retrieved Matter . | . . . . . . . Retrieved Components . | . . . . . . . Parts Scanalyzed . | . . . . . . . Part Schematics Acquired . | . . . . . . . Parts Damaged . | . . . . . . . Bothacking | -11 -10 -10 -9 -8 -7 -7 ------------ Run | Scr Mat Min Mat Mat Fac DSF Used RIF Installer . | . . . . . . . Robots Hacked . | . . . . . . . Non-combat . | . . . . . . . Combat . | . . . . . . . Robot Hacks Applied . | . . . . . . . Relay Couplers Released . | . . . . . . . Fabnet Peak Effective % . | . . . . . . . Robots Rewired . | . . . . . . . Allies Hacked . | . . . . . . . Hacks Repelled . | . . . . . . . Allies | -11 -10 -10 -9 -8 -7 -7 -------- Run | Scr Mat Min Mat Mat Fac DSF Total Allies . | . . . . . . . Largest Group . | . . . . . . . Highest-Rated Group . | . . . . . . . Highest-Rated Ally . | . . . . . . . Total Orders . | . . . . . . . Ally Attacks . | . . . . . . . Total Damage . | . . . . . . . Kills . | . . . . . . . Allies Corrupted . | . . . . . . . Allies Melted . | . . . . . . . Intel | -11 -10 -10 -9 -8 -7 -7 ------- Run | Scr Mat Min Mat Mat Fac DSF Robot Analysis Total . | . . . . . . . Derelict Logs Recovered 2 | . . 2 . . . . Drone Launches . | . . . . . . . Drone Recoveries . | . . . . . . . Exploration | -11 -10 -10 -9 -8 -7 -7 ------------- Run | Scr Mat Min Mat Mat Fac DSF Turns Passed 2556 | 63 99 400 348 1323 48 275 Spaces Moved 1025 | 42 80 184 168 462 19 70 Core 28 | 15 . . . 2 . 11 Treads 376 | . . 88 162 48 19 59 Legs 621 | 27 80 96 6 412 . . Wheels . | . . . . . . . Hover . | . . . . . . . Flight . | . . . . . . . Fastest Speed 50 | 50 120 120 120 120 232 232 Average Speed 174 | 106 120 143 158 189 232 286 Slowest Speed 750 | 120 120 190 160 750 232 750 Overloaded Moves . | . . . . . . . Propulsion Burnouts . | . . . . . . . Robots Hopped . | . . . . . . . Cave-ins Triggered . | . . . . . . . Exploration Rate (%) 31 | 4 21 57 26 45 1 69 Regions Visited 6 Branch Regions 1 Pre-discovered Areas 1 | . . 1 . . . . Known Exits Taken 2 | . . 1 . . 1 . Unknown Exits Taken 4 | 1 1 . 1 1 . . Scrap Searched 1 | . . 1 . . . . Spaces Dug . | . . . . . . . Terrain Destroyed 134 | . . 21 16 84 . 13 Melee . | . . . . . . . Projectile 13 | . . . . 13 . . AOE 121 | . . 21 16 71 . 13 Terrain Rammed . | . . . . . . . Walls Destroyed . | . . . . . . . Machines Disabled . | . . . . . . . Actions | -11 -10 -10 -9 -8 -7 -7 --------- Run | Scr Mat Min Mat Mat Fac DSF Total 1560 | 60 83 265 219 791 25 117 Wait 235 | 3 . 37 10 167 . 18 Move 1019 | 41 79 183 167 461 18 70 Hop . | . . . . . . . Pick Up 79 | 10 3 4 13 43 1 5 Fast Attach 2 | . . . . 2 . . Attach 41 | 6 1 3 7 15 2 7 Detach . | . . . . . . . Swap 25 | . . 4 2 15 1 3 Drop 30 | . . 1 2 24 3 . Fire 124 | . . 28 18 64 . 14 Melee . | . . . . . . . Ram . | . . . . . . . Kick . | . . . . . . . Crush 5 | . . 5 . . . . Escape Stasis . | . . . . . . . Rewire . | . . . . . . . Trap . | . . . . . . . Miscellaneous . | . . . . . . . Route ------- -11/Scrapyard -10/Materials -10/Mines (discovered 2 exits: *Mat x2) -9/Materials -8/Materials -7/Factory -7/DSF History --------- Turn | Location | Event 17 | -11/Scrapyard | Discovered new exit (range 15) 64 | -11/Scrapyard | Entered Materials 137 | -10/Materials | Discovered new exit (range 15) 163 | -10/Materials | Entered Mines 170 | -10/Mines | Received a Rocket Launcher from a helpful Derelict 268 | -10/Mines | Identified exit to Materials 303 | -10/Mines | Build established: Mutant 362 | -10/Mines | Assembled infested the area 401 | -10/Mines | Core integrity fell below 50% 550 | -10/Mines | Discovered exit to Materials (range 8) 563 | -10/Mines | Entered Materials 563 | -9/Materials | Evolved 2 slots: Propulsion x1, Utility x1 842 | -9/Materials | System corruption reached 10% 881 | -9/Materials | Lost 5 parts (1p2u2w) 891 | -9/Materials | Discovered new exit (range 9) 911 | -9/Materials | Entered another Materials area 911 | -8/Materials | Evolved 2 slots: Power x1, Utility x1 1218 | -8/Materials | Build established: Scavenger-Mutant 1533 | -8/Materials | Repaired Aluminum Leg 1561 | -8/Materials | Repaired Aluminum Leg 1589 | -8/Materials | Repaired Lrg. Storage Unit 2129 | -8/Materials | Lost 5 parts (1p3n1w) 2183 | -8/Materials | Discovered new exit (range 15) 2234 | -8/Materials | Entered Factory 2234 | -7/Factory | Evolved 2 slots: Utility x1, Weapon x1 2282 | -7/Factory | Identified exit to DSF 2282 | -7/Factory | Entered DSF 2336 | -7/DSF | Additional patrols routed to DSF 2506 | -7/DSF | Core integrity fell below 50% 2545 | -7/DSF | Core integrity fell below 20% 2557 | -7/DSF | Destroyed by G-47 Trooper with Particle Gun Last Messages --------------- Plasma Cannon blasted off. Knocked back. Minigun destroyed. Nuclear Core destroyed. Critical hit (Burn: +37). Penetrated by Slug. Prc. Assault Rifle destroyed. Knocked back. Acquired 8 matter. Lgt. Deuterium Engine destroyed. Arc Projector destroyed. S-27 Virus destroyed. Hvy. Laser destroyed. Critical hit (Burn: +37). Arc Projector destroyed. Knocked back. C-30 ARC bursts open, deploying its payload. P-60 Hacker unfolds itself. P-60 Hacker resets G-47 Trooper, system corruption cleaned. Gauss Rifle destroyed. Map ----- +----------------------------------------------------+ | ???# ???????????? ??????????????????????? | | ??? ???????????? ??????????????????????? | | ??? ???????????? ??????????????????????? | | ??## #????????### ###????????????????????? | | ??# ????????#!! !!#????????????????????? | | ??# ????????#!! !!#????????????????????? | | ??? ^^ ??????###!! !!?????????????????????? | | ?### ######## # # #???###????????????????? | | ?#!! "##!!!# * ##?!!!#?? ?????????????? | | ##!!"%##!!! ##!!!# ?????????????? | | #" " ????????????? | | ?# %= [ %= ??? !????????? | | ?# %[%= = = ????? !????????? | | ?#!! ##% == #?????????? ????????? | | ?#!! #" === #??????????# ????????? | | ?### ###""""#####]=%###????????# ##???????? | | ??# &&# ##?#!! [%**#????????! ????????? | | ??# &&#####??#!! =**#????????! ????????? | | ??# &&#??????#!! **#????????! ????????? | | ??## ###??????##" "##???????## ##???????? | | ??#& &&#??????#== //#????????! #???????? | | ??#& &&#??????#==% %//#????????! #???????? | | ??## ##########== //########?# #????????? | | ?### ###&&# #"" #"#!!!# ### ###??????? | | ##"" ##&&# #"# ###!!!# ## ""###????? | | """" % sp @ """""????? | | ##"" % H gg % ""#??????? | | ?#"""""##&&#&&&#!! #!!!# ##"""""#??????? | | ?#"""""#########!!% [#########"""""#??????? | | ?####"##???????##;;#;###???????##"####??????? | | ????#"#?????????# ####??????????#"#?????????? | | ????""#?????????###?????????????#""?????????? | | ?????????????????????????????????##?????????? | | ????????????????????????????????????????????? | | ????????????????????????????????????????????? | | ????????????????????????????????????????????? | | ????????????????????????????????????????????? | | | | | | | | | | | | | | | | | | | | | | | | | | | +----------------------------------------------------+ Best States ------------- Heat Dissipation 41 Energy Generation 23 Energy Capacity 400 Matter Stores 300 Matter Capacity 500 Sight Range 20 Terrain Scan Density 85 Armor Coverage 600 Core Shielding 20 Evasion (%) 55 Targeting Accuracy 8 Recoil Reduction 3 Item Schematics ----------------- None Robot Schematics ------------------ None Fabricated ------------ Nothing Alien Tech Used ----------------- None Achievements -------------- Oops Risk Taker Challenges ------------ None Game ------ Seed BiomechanicalElectronShifter Manual? 0 Play Time 00:38:09 Cumulative 3.0 hours Start 2022.05.15 @ 14:05:02 End 2022.05.15 @ 14:41:10 Sessions 1 Manual Loads 0 Difficulty Rogue Special Mode None Game No. 4 Rogue 2 Adventurer 2 Explorer 0 Win Type - Total 0 Types 0/0/0/0/0/0/0/0/0 Lore% 7 Gallery% 8 Achievement% 8 Wizard Run 0 Options --------- ASCII 0 Keyboard 0 Movement Mouse Keybinds 0 Fullscreen 1 Font 18/SmallcapsGlow Map View 76x50 Tactical HUD 0 Map Filters NONE Filters NONE Steam 1 RUN: 906c9694-ebc7-4097-b3f9-591dd3f94aac